fUST/lending_fUST_20240731
["ID","MTS","AMOUNT","RATE_DAILY","PERIOD"]
[333705760,1722385841412,-690.30424039,0.00014794,2]
[333705761,1722385841421,-1052.89,0.00014794,2]
[333705762,1722385841432,-177.82575977,0.00014794,2]
[333705763,1722385841445,-1014.36424023,0.00014794,2]
[333705764,1722385841455,-1839.52,0.00014794,2]
[333705765,1722385841464,-7483.01,0.00014794,2]
[333705766,1722385841474,-716.51,0.00014794,2]
[333705767,1722385841483,-500.0,0.00014794,2]
[333705768,1722385841493,-1303.98,0.00014794,2]
[333705769,1722385841504,-500.0,0.00014794,2]
[333705770,1722385841513,-574.6,0.00014794,2]
[333705771,1722385841524,-500.0,0.00014794,2]
[333705772,1722385841534,-500.0,0.00014794,2]
[333705773,1722385841543,-500.0,0.00014794,2]
[333705774,1722385841555,-500.0,0.00014794,2]
[333705775,1722385841564,-500.0,0.00014794,2]
[333705776,1722385841574,-2053.41,0.00014794,2]
[333705777,1722385841583,-1450.78,0.00014794,2]
[333705778,1722385841594,-995.03,0.00014794,2]
[333705779,1722385841603,-500.0,0.00014794,2]
[333705780,1722385841612,-500.0,0.00014794,2]
[333705781,1722385841622,-1946.52,0.00014794,2]
[333705782,1722385841631,-500.0,0.00014794,2]
[333705783,1722385841640,-712.14,0.00014794,2]
[333705784,1722385841649,-500.0,0.00014794,2]
[333705785,1722385841660,-500.0,0.00014794,2]
[333705786,1722385841669,-936.48,0.00014794,2]
[333705787,1722385841679,-500.0,0.00014794,2]
[333705788,1722385841689,-500.0,0.00014794,2]
[333705789,1722385841698,-1613.63,0.00014794,2]
[333705790,1722385841709,-500.0,0.00014794,2]
[333705791,1722385841718,-500.0,0.00014794,2]
[333705792,1722385841728,-3863.22,0.00014794,2]
[333705793,1722385841738,-500.0,0.00014794,2]
[333705794,1722385841749,-500.0,0.00014794,2]
[333705795,1722385841758,-500.0,0.00014794,2]
[333705796,1722385841768,-711.75,0.00014794,2]
[333705797,1722385841778,-500.0,0.00014794,2]
[333705798,1722385841788,-500.0,0.00014794,2]
[333705799,1722385841797,-9265.63,0.00014794,2]
[333705800,1722385841806,-1097.8,0.00014794,2]
[333705801,1722385841815,-646.21,0.00014794,2]
[333705802,1722385841824,-500.0,0.00014794,2]
[333705803,1722385841834,-802.35,0.00014794,2]
[333705804,1722385841843,-651.52,0.00014794,2]
[333705805,1722385841853,-500.0,0.00014794,2]
[333705806,1722385841863,-2191.89,0.00014794,2]
[333705807,1722385841872,-640.38,0.00014794,2]
[333705808,1722385841882,-500.0,0.00014794,2]
[333705809,1722385841892,-500.0,0.00014794,2]
[333705810,1722385841902,-393.92910042,0.00014794,2]
[333705811,1722385841912,-500.0,0.00014794,2]
[333705812,1722385841921,-500.0,0.00014794,2]
[333705813,1722385841931,-500.0,0.00014794,2]
[333705814,1722385841941,-627.01,0.00014794,2]
[333705815,1722385841950,-500.0,0.00014794,2]
[333705816,1722385841961,-500.0,0.00014794,2]
[333705817,1722385841972,-500.0,0.00014794,2]
[333705818,1722385841983,-270.31,0.00014794,2]
[333705819,1722385841994,-500.0,0.00014794,2]
[333705820,1722385842004,-500.0,0.00014794,2]
[333705821,1722385842014,-607.64,0.00014794,2]
[333705822,1722385842025,-157.48,0.00014794,2]
[333705823,1722385842037,-332.73214073,0.00014794,2]
[333705824,1722385842047,-531.17579862,0.00014794,2]
[333705825,1722385842058,-500.0,0.00014794,2]
[333705826,1722385842067,-500.0,0.00014794,2]
[333705827,1722385842077,-833.33,0.00014794,2]
[333705828,1722385842086,-500.0,0.00014794,2]
[333705829,1722385842095,-166.82,0.00014794,2]
[333705830,1722385842105,-500.0,0.00014794,2]
[333705831,1722385842114,-500.0,0.00014794,2]
[333705832,1722385842124,-500.0,0.00014794,2]
[333705833,1722385842133,-500.0,0.00014794,2]
[333705834,1722385842142,-500.0,0.00014794,2]
[333705835,1722385842151,-500.0,0.00014794,2]
[333705836,1722385842160,-1646.13,0.00014794,2]
[333705837,1722385842169,-628.71,0.00014794,2]
[333705838,1722385842179,-646.98,0.00014794,2]
[333705839,1722385842190,-581.44,0.00014794,2]
[333705840,1722385842201,-500.0,0.00014794,2]
[333705841,1722385842215,-433.42,0.00014794,2]
[333705842,1722385842223,-500.0,0.00014794,2]
[333705843,1722385842232,-473.88,0.00014794,2]
[333705844,1722385842241,-224.22,0.00014794,2]
[333705845,1722385842250,-500.0,0.00014794,2]
[333705846,1722385842259,-500.0,0.00014794,2]
[333705847,1722385842268,-272.75,0.00014794,2]
[333705848,1722385842277,-500.0,0.00014794,2]
[333705849,1722385842286,-500.0,0.00014794,2]
[333705850,1722385842294,-500.0,0.00014794,2]
[333705851,1722385842304,-500.0,0.00014794,2]
[333705852,1722385842315,-648.05,0.00014794,2]
[333705853,1722385842326,-297.93221816,0.00014794,2]
[333705854,1722385842339,-500.0,0.00014794,2]
[333705855,1722385842353,-500.0,0.00014794,2]
[333705856,1722385842363,-500.0,0.00014794,2]
[333705857,1722385842372,-500.0,0.00014794,2]
[333705858,1722385842381,-544.66671704,0.00014794,2]
[333705859,1722385842391,-618.9,0.00014794,2]
[333705860,1722385842399,-500.0,0.00014794,2]
[333705861,1722385842410,-500.0,0.00014794,2]
[333705862,1722385842420,-196.01298043,0.00014794,2]
[333705863,1722385842491,-500.0,0.00014584,2]
[333705864,1722385842502,-368.65627888,0.00014794,2]
[333705865,1722385842512,-500.0,0.00014794,2]
[333705866,1722385842521,-421.7,0.00014794,2]
[333705867,1722385842532,-500.0,0.00014794,2]
[333705868,1722385842542,-500.0,0.00014794,2]
[333705869,1722385842551,-500.0,0.00014794,2]
[333705870,1722385842560,-510.25349903,0.00014794,2]
[333705871,1722385842569,-500.0,0.00014794,2]
[333705872,1722385842579,-500.0,0.00014794,2]
[333705873,1722385842588,-500.0,0.00014794,2]
[333705874,1722385842597,-531.0,0.00014794,2]
[333705875,1722385842607,-500.0,0.00014794,2]
[333705876,1722385842616,-182.37,0.00014794,2]
[333705878,1722385842626,-500.0,0.00014794,2]
[333705879,1722385842636,-500.0,0.00014794,2]
[333705880,1722385842647,-500.0,0.00014794,2]
[333705881,1722385842658,-159.34,0.00014794,2]
[333705882,1722385842668,-500.0,0.00014794,2]
[333705883,1722385842677,-500.0,0.00014794,2]
[333705884,1722385842693,-500.0,0.00014794,2]
[333705885,1722385842702,-500.0,0.00014794,2]
[333705887,1722385842712,-237.74,0.00014794,2]
[333705888,1722385842721,-349.76437299,0.00014794,2]
[333705889,1722385842731,-200.12384737,0.00014794,2]
[333705890,1722385842740,-500.0,0.00014794,2]
[333705891,1722385842749,-500.0,0.00014794,2]
[333705892,1722385842759,-500.0,0.00014794,2]
[333705894,1722385842768,-398.51688037,0.00014794,2]
[333705895,1722385842778,-533.85273547,0.00014794,2]
[333705896,1722385842787,-500.0,0.00014794,2]
[333705897,1722385842797,-297.58,0.00014794,2]
[333705898,1722385842806,-500.0,0.00014794,2]
[333705899,1722385842816,-205.23119674,0.00014794,2]
[333705900,1722385842825,-562.54424283,0.00014794,2]
[333705901,1722385842835,-500.0,0.00014794,2]
[333705902,1722385842844,-500.0,0.00014794,2]
[333705903,1722385842854,-393.93,0.00014794,2]
[333705904,1722385842864,-500.0,0.00014794,2]
[333705905,1722385842873,-500.0,0.00014794,2]
[333705907,1722385842883,-500.0,0.00014794,2]
[333705909,1722385842893,-500.0,0.00014794,2]
[333705910,1722385842902,-500.0,0.00014794,2]
[333705911,1722385842912,-545.44,0.00014794,2]
[333705912,1722385842921,-500.0,0.00014794,2]
[333705913,1722385842933,-390.06,0.00014794,2]
[333705915,1722385842943,-500.0,0.00014794,2]
[333705916,1722385842953,-393.93,0.00014794,2]
[333705917,1722385842962,-3552.09,0.00014794,2]
[333705918,1722385842971,-500.0,0.00014794,2]
[333705919,1722385842980,-500.0,0.00014794,2]
[333705920,1722385842990,-500.0,0.00014794,2]
[333705922,1722385842999,-500.0,0.00014794,2]
[333705924,1722385843009,-500.0,0.00014794,2]
[333705925,1722385843020,-638.35,0.00014794,2]
[333705926,1722385843029,-500.0,0.00014794,2]
[333705927,1722385843040,-554.27,0.00014794,2]
[333705928,1722385843052,-549.13,0.00014794,2]
[333705930,1722385843061,-500.0,0.00014794,2]
[333705931,1722385843070,-500.0,0.00014794,2]
[333705932,1722385843079,-500.0,0.00014794,2]
[333705933,1722385843089,-692.84,0.00014794,2]
[333705934,1722385843098,-6553.49,0.00014794,2]
[333705935,1722385843107,-500.0,0.00014794,2]
[333705936,1722385843117,-5296.11,0.00014794,2]
[333705937,1722385843126,-550.34,0.00014794,2]
[333705938,1722385843137,-1244.51,0.00014794,2]
[333705939,1722385843147,-3380.92,0.00014794,2]
[333705940,1722385843157,-500.0,0.00014794,2]
[333705941,1722385843166,-238.18,0.00014794,2]
[333705942,1722385843176,-500.0,0.00014794,2]
[333705943,1722385843186,-500.0,0.00014794,2]
[333705944,1722385843196,-500.0,0.00014794,2]
[333705945,1722385843205,-270.31,0.00014794,2]
[333705946,1722385843214,-191.89,0.00014794,2]
[333705947,1722385843224,-500.0,0.00014794,2]
[333705948,1722385843234,-500.0,0.00014794,2]
[333705949,1722385843243,-465.5,0.00014794,2]
[333705950,1722385843253,-500.0,0.00014794,2]
[333705951,1722385843262,-500.0,0.00014794,2]
[333705952,1722385843271,-500.0,0.00014794,2]
[333705953,1722385843281,-500.0,0.00014794,2]
[333705954,1722385843290,-335.08,0.00014794,2]
[333705955,1722385843300,-157.48,0.00014794,2]
[333705956,1722385843309,-500.0,0.00014794,2]
[333705957,1722385843318,-616.61,0.00014794,2]
[333705958,1722385843328,-500.0,0.00014794,2]
[333705959,1722385843337,-500.0,0.00014794,2]
[333705960,1722385843350,-500.0,0.00014794,2]
[333705961,1722385843360,-335.08,0.00014794,2]
[333705962,1722385843369,-500.0,0.00014794,2]
[333705963,1722385843379,-500.0,0.00014794,2]
[333705964,1722385843388,-500.0,0.00014794,2]
[333705965,1722385843399,-500.0,0.00014794,2]
[333705966,1722385843408,-228.55315449,0.00014794,2]
[333705967,1722385843420,-500.0,0.00014794,2]
[333705968,1722385843430,-500.0,0.00014794,2]
[333705969,1722385843439,-500.0,0.00014794,2]
[333705970,1722385843449,-500.0,0.00014794,2]
[333705971,1722385843458,-500.0,0.00014794,2]
[333705972,1722385843468,-500.0,0.00014794,2]
[333705973,1722385843481,-500.0,0.00014794,2]
[333705974,1722385843491,-500.0,0.00014794,2]
[333705975,1722385843502,-500.0,0.00014794,2]
[333705976,1722385843513,-297.66,0.00014794,2]
[333705977,1722385843524,-500.0,0.00014794,2]
[333705978,1722385843535,-173.44,0.00014794,2]
[333705979,1722385843544,-583.75219953,0.00014794,2]
[333705980,1722385843555,-270.31,0.00014794,2]
[333705981,1722385843565,-209.23,0.00014794,2]
[333705982,1722385843574,-500.0,0.00014794,2]
[333705983,1722385843583,-500.0,0.00014794,2]
[333705984,1722385843593,-500.0,0.00014794,2]
[333705985,1722385843602,-500.0,0.00014794,2]
[333705986,1722385843612,-500.0,0.00014794,2]
[333705987,1722385843621,-500.0,0.00014794,2]
[333705988,1722385843630,-500.0,0.00014794,2]
[333705989,1722385843639,-500.0,0.00014794,2]
[333705990,1722385843649,-500.0,0.00014794,2]
[333705991,1722385843658,-446.52,0.00014794,2]
[333705992,1722385843668,-547.68,0.00014794,2]
[333705993,1722385843676,-500.0,0.00014794,2]
[333705994,1722385843687,-500.0,0.00014794,2]
[333705995,1722385843695,-500.0,0.00014794,2]
[333705996,1722385843705,-500.0,0.00014794,2]
[333705997,1722385843714,-500.0,0.00014794,2]
[333705998,1722385843723,-500.0,0.00014794,2]
[333705999,1722385843733,-244.89,0.00014794,2]
[333706000,1722385843743,-503.71626438,0.00014794,2]
[333706001,1722385843753,-500.0,0.00014794,2]
[333706002,1722385843762,-500.0,0.00014794,2]
[333706003,1722385843771,-505.86770827,0.00014794,2]
[333706004,1722385843781,-500.0,0.00014794,2]
[333706005,1722385843790,-500.0,0.00014794,2]
[333706006,1722385843799,-500.0,0.00014794,2]
[333706007,1722385843808,-309.78944384,0.00014794,2]
[333706008,1722385843817,-172.47,0.00014794,2]
[333706009,1722385843826,-500.0,0.00014794,2]
[333706010,1722385843837,-500.0,0.00014794,2]
[333706011,1722385843846,-506.6791589,0.00014794,2]
[333706012,1722385843855,-428.79,0.00014794,2]
[333706013,1722385843865,-500.0,0.00014794,2]
[333706014,1722385843875,-500.0,0.00014794,2]
[333706015,1722385843884,-510.31573358,0.00014794,2]
[333706016,1722385843895,-500.0,0.00014794,2]
[333706017,1722385843905,-500.0,0.00014794,2]
[333706018,1722385843916,-500.0,0.00014794,2]
[333706019,1722385843927,-500.0,0.00014794,2]
[333706020,1722385843937,-500.0,0.00014794,2]
[333706021,1722385843947,-500.0,0.00014794,2]
[333706022,1722385843958,-500.0,0.00014794,2]
[333706023,1722385843968,-154.81588781,0.00014794,2]
[333706024,1722385843977,-593.76,0.00014794,2]
[333706025,1722385843987,-273.76318875,0.00014794,2]
[333706026,1722385843996,-500.0,0.00014794,2]
[333706027,1722385844006,-500.0,0.00014794,2]
[333706028,1722385844015,-500.0,0.00014794,2]
[333706029,1722385844025,-500.0,0.00014794,2]
[333706030,1722385844034,-500.0,0.00014794,2]
[333706031,1722385844045,-537.79,0.00014794,2]
[333706032,1722385844055,-500.0,0.00014794,2]
[333706033,1722385844065,-552.39796529,0.00014794,2]
[333706034,1722385844074,-500.0,0.00014794,2]
[333706035,1722385844084,-613.46410381,0.00014794,2]
[333706036,1722385844094,-358.47,0.00014794,2]
[333706037,1722385844103,-211.75,0.00014794,2]
[333706038,1722385844113,-511.26663846,0.00014794,2]
[333706039,1722385844123,-279.87912338,0.00014794,2]
[333706040,1722385844132,-500.0,0.00014794,2]
[333706041,1722385844143,-500.0,0.00014794,2]
[333706042,1722385844152,-500.0,0.00014794,2]
[333706043,1722385844163,-500.0,0.00014794,2]
[333706044,1722385844172,-616.14557529,0.00014794,2]
[333706045,1722385844183,-500.0,0.00014794,2]
[333706046,1722385844192,-521.48766593,0.00014794,2]
[333706047,1722385844202,-500.0,0.00014794,2]
[333706048,1722385844212,-500.0,0.00014794,2]
[333706049,1722385844222,-500.0,0.00014794,2]
[333706050,1722385844231,-500.0,0.00014794,2]
[333706051,1722385844241,-512.01800743,0.00014794,2]
[333706052,1722385844250,-500.0,0.00014794,2]
[333706053,1722385844260,-500.0,0.00014794,2]
[333706054,1722385844270,-500.0,0.00014794,2]
[333706055,1722385844280,-523.7882016,0.00014794,2]
[333706056,1722385844289,-435.76,0.00014794,2]
[333706057,1722385844298,-500.0,0.00014794,2]
[333706058,1722385844308,-500.0,0.00014794,2]
[333706059,1722385844318,-511.55183873,0.00014794,2]
[333706060,1722385844328,-514.68005845,0.00014794,2]
[333706061,1722385844338,-500.0,0.00014794,2]
[333706062,1722385844351,-514.75792423,0.00014794,2]
[333706063,1722385844361,-500.0,0.00014794,2]
[333706064,1722385844371,-383.16,0.00014794,2]
[333706065,1722385844382,-500.0,0.00014794,2]
[333706066,1722385844392,-500.0,0.00014794,2]
[333706067,1722385844401,-500.0,0.00014794,2]
[333706068,1722385844411,-339.52,0.00014794,2]
[333706069,1722385844423,-157.48,0.00014794,2]
[333706070,1722385844433,-512.75,0.00014794,2]
[333706071,1722385844443,-1746.89,0.00014794,2]
[333706072,1722385844454,-500.0,0.00014794,2]
[333706073,1722385844464,-500.0,0.00014794,2]
[333706074,1722385844474,-1337.6,0.00014794,2]
[333706075,1722385844484,-500.0,0.00014794,2]
[333706076,1722385844493,-500.0,0.00014794,2]
[333706077,1722385844504,-500.0,0.00014794,2]
[333706078,1722385844514,-519.89730169,0.00014794,2]
[333706079,1722385844525,-500.0,0.00014794,2]
[333706080,1722385844536,-586.73,0.00014794,2]
[333706081,1722385844546,-599.14915871,0.00014794,2]
[333706082,1722385844557,-238.18,0.00014794,2]
[333706083,1722385844566,-500.0,0.00014794,2]
[333706084,1722385844576,-500.0,0.00014794,2]
[333706085,1722385844587,-463.88,0.00014794,2]
[333706086,1722385844598,-500.0,0.00014794,2]
[333706087,1722385844609,-457.72,0.00014794,2]
[333706088,1722385844618,-500.0,0.00014794,2]
[333706089,1722385844627,-506.14910203,0.00014794,2]
[333706090,1722385844638,-500.0,0.00014794,2]
[333706091,1722385844648,-500.0,0.00014794,2]
[333706092,1722385844659,-500.0,0.00014794,2]
[333706093,1722385844668,-500.0,0.00014794,2]
[333706094,1722385844678,-500.0,0.00014794,2]
[333706095,1722385844687,-500.0,0.00014794,2]
[333706096,1722385844697,-500.0,0.00014794,2]
[333706097,1722385844707,-500.0,0.00014794,2]
[333706098,1722385844717,-150.81574374,0.00014794,2]
[333706099,1722385844727,-502.75,0.00014794,2]
[333706100,1722385844736,-500.0,0.00014794,2]
[333706101,1722385844746,-511.3,0.00014794,2]
[333706102,1722385844755,-500.0,0.00014794,2]
[333706103,1722385844765,-500.0,0.00014794,2]
[333706104,1722385844774,-500.0,0.00014794,2]
[333706105,1722385844784,-500.0,0.00014794,2]
[333706106,1722385844793,-376.92,0.00014794,2]
[333706107,1722385844803,-534.71,0.00014794,2]
[333706108,1722385844813,-507.58710656,0.00014794,2]
[333706109,1722385844825,-500.0,0.00014794,2]
[333706110,1722385844837,-500.0,0.00014794,2]
[333706111,1722385844848,-500.0,0.00014794,2]
[333706112,1722385844859,-500.0,0.00014794,2]
[333706113,1722385844869,-1083.33,0.00014794,2]
[333706114,1722385844879,-500.0,0.00014794,2]
[333706115,1722385844889,-500.0,0.00014794,2]
[333706116,1722385844899,-500.0,0.00014794,2]
[333706117,1722385844909,-500.0,0.00014794,2]
[333706118,1722385844919,-500.0,0.00014794,2]
[333706119,1722385844928,-500.0,0.00014794,2]
[333706120,1722385844938,-500.0,0.00014794,2]
[333706121,1722385844948,-500.0,0.00014794,2]
[333706122,1722385844957,-500.0,0.00014794,2]
[333706123,1722385844967,-500.0,0.00014794,2]
[333706124,1722385844977,-500.0,0.00014794,2]
[333706125,1722385844986,-500.0,0.00014794,2]
[333706126,1722385844996,-500.0,0.00014794,2]
[333706127,1722385845006,-500.0,0.00014794,2]
[333706128,1722385845017,-473.28,0.00014794,2]
[333706129,1722385845027,-500.0,0.00014794,2]
[333706130,1722385845038,-500.0,0.00014794,2]
[333706131,1722385845048,-500.0,0.00014794,2]
[333706132,1722385845058,-629.05,0.00014794,2]
[333706133,1722385845068,-500.0,0.00014794,2]
[333706134,1722385845078,-500.0,0.00014794,2]
[333706135,1722385845088,-500.0,0.00014794,2]
[333706136,1722385845098,-500.0,0.00014794,2]
[333706137,1722385845108,-577.74,0.00014794,2]
[333706138,1722385845119,-500.0,0.00014794,2]
[333706139,1722385845128,-588.46,0.00014794,2]
[333706140,1722385845139,-500.0,0.00014794,2]
[333706141,1722385845148,-500.0,0.00014794,2]
[333706142,1722385845158,-500.0,0.00014794,2]
[333706143,1722385845168,-500.0,0.00014794,2]
[333706144,1722385845178,-500.0,0.00014794,2]
[333706145,1722385845188,-332.07879351,0.00014794,2]
[333706146,1722385845198,-500.0,0.00014794,2]
[333706147,1722385845207,-500.0,0.00014794,2]
[333706148,1722385845217,-500.0,0.00014794,2]
[333706149,1722385845227,-500.0,0.00014794,2]
[333706150,1722385845237,-500.0,0.00014794,2]
[333706151,1722385845247,-500.0,0.00014794,2]
[333706152,1722385845258,-500.0,0.00014794,2]
[333706153,1722385845267,-500.0,0.00014794,2]
[333706154,1722385845277,-500.0,0.00014794,2]
[333706155,1722385845287,-500.0,0.00014794,2]
[333706156,1722385845296,-329.844199,0.00014794,2]
[333706157,1722385845305,-500.0,0.00014794,2]
[333706158,1722385845315,-500.0,0.00014794,2]
[333706159,1722385845325,-416.17399427,0.00014794,2]
[333706161,1722385845499,-500.0,0.00014794,2]
[333706162,1722385845509,-500.0,0.00014794,2]
[333706164,1722385845519,-151.0,0.00014794,2]
[333706166,1722385845528,-151.0,0.00014794,2]
[333706168,1722385845538,-151.0,0.00014794,2]
[333706170,1722385845548,-151.0,0.00014794,2]
[333706172,1722385845558,-220.496676,0.00014794,2]
[333706173,1722385845568,-151.0,0.00014794,2]
[333706174,1722385845579,-151.0,0.00014794,2]
[333706175,1722385845590,-151.0,0.00014794,2]
[333706176,1722385845600,-151.0,0.00014794,2]
[333706177,1722385845611,-151.0,0.00014794,2]
[333706178,1722385845622,-151.0,0.00014794,2]
[333706179,1722385845631,-151.0,0.00014794,2]
[333706180,1722385845643,-151.0,0.00014794,2]
[333706181,1722385845655,-151.0,0.00014794,2]
[333706183,1722385845667,-150.112233,0.000148,2]
[333706185,1722385845676,-150.112233,0.000148,2]
[333706187,1722385845688,-3000.0,0.000148,30]
[333706188,1722385845697,-3000.0,0.0001481,30]
[333706189,1722385845707,-3000.0,0.0001482,30]
[333706190,1722385845718,-894.69666454,0.0001483,30]
[333706200,1722385845926,-1470.30002229,0.0001483,30]
[333706201,1722385845942,-635.00331317,0.0001483,30]
[333706203,1722385845953,-1591.86,0.00014836,2]
[333706204,1722385845963,-3000.0,0.0001484,30]
[333706205,1722385845972,-27847.3109424,0.00014849,2]
[333706207,1722385845983,-3314.309607,0.0001485,30]
[333706209,1722385845993,-500.0,0.00014859,2]
[333706211,1722385846003,-500.0,0.00014859,2]
[333706212,1722385846014,-315.13112511,0.00014859,2]
[333706213,1722385846025,-500.0,0.00014859,2]
[333706214,1722385846035,-500.0,0.00014859,2]
[333706216,1722385846047,-500.0,0.0001486,2]
[333706218,1722385846057,-500.0,0.0001486,2]
[333706219,1722385846067,-500.0,0.0001486,2]
[333706220,1722385846078,-500.0,0.0001486,2]
[333706221,1722385846088,-500.0,0.0001486,2]
[333706222,1722385846099,-154.93037114,0.000149,2]
[333706223,1722385846110,-150.112233,0.000149,2]
[333706224,1722385846119,-150.112233,0.000149,2]
[333706225,1722385846130,-419.26422085,0.000149,2]
[333706226,1722385846140,-419.26422084,0.000149,2]
[333706227,1722385846149,-419.26422084,0.000149,2]
[333706228,1722385846159,-689.2817922,0.00014921,2]
[333706229,1722385846168,-500.0,0.00014951,2]
[333706230,1722385846179,-500.0,0.00014951,2]
[333706231,1722385846190,-500.0,0.00014951,2]
[333706233,1722385846200,-500.0,0.00014952,2]
[333706235,1722385846209,-500.0,0.00014952,2]
[333706236,1722385846219,-759.47,0.00014953,2]
[333706237,1722385846230,-500.0,0.00014953,2]
[333706238,1722385846242,-500.0,0.00014953,2]
[333706239,1722385846253,-500.0,0.00014953,2]
[333706240,1722385846263,-500.0,0.00014953,2]
[333706241,1722385846273,-500.0,0.00014953,2]
[333706242,1722385846283,-500.0,0.00014953,2]
[333706243,1722385846292,-500.0,0.00014953,2]
[333706244,1722385846302,-636.11,0.00014953,2]
[333706245,1722385846312,-500.0,0.00014953,2]
[333706246,1722385846322,-374.11372244,0.00014953,2]
[333706247,1722385846332,-331.0,0.00014957,2]
[333706248,1722385846345,-1706.79,0.0001496,2]
[333706249,1722385846354,-741.74,0.00014961,2]
[333706250,1722385846364,-500.0,0.00014961,2]
[333706251,1722385846374,-632.83,0.00014961,2]
[333706252,1722385846385,-351.55507139,0.00014962,2]
[333706253,1722385846443,-500.0,0.00014584,2]
[333706254,1722385846453,-148.44492861,0.00014962,2]
[333706255,1722385846462,-800.63064584,0.00014962,2]
[333706256,1722385846475,-58.25935416,0.00014962,2]
[333706257,1722385846484,-957.93,0.00014962,2]
[333706258,1722385846494,-1204.12,0.00014962,2]
[333706259,1722385846504,-500.0,0.00014962,2]
[333706260,1722385846514,-500.0,0.00014962,2]
[333706261,1722385846524,-500.0,0.00014963,2]
[333706262,1722385846537,-332.88891416,0.00014963,2]
[333706267,1722386730144,-158.441376,0.00012986,2]
[333706268,1722386730167,-33.96321608,0.00013173,2]
[333706270,1722386839098,-2000.0,0.00012742,2]
[333706271,1722386959362,-297.0,0.00012741,2]
[333706272,1722386959385,-22900.0,0.00012742,2]
[333706273,1722386959409,-159.803808,0.00012986,2]
[333706355,1722387032388,-1493.00347826,0.00013598,2]
[333706357,1722387032399,-500.0,0.00013697,2]
[333706359,1722387032410,-500.0,0.00013698,2]
[333706362,1722387032419,-231.10271594,0.00013698,2]
[333706363,1722387032429,-500.0,0.00013698,2]
[333706366,1722387032438,-500.0,0.00013698,2]
[333706368,1722387032449,-500.0,0.00013698,2]
[333706370,1722387032460,-502.11247558,0.00013698,2]
[333706372,1722387032471,-500.0,0.00013698,2]
[333706374,1722387032481,-500.0,0.00013698,2]
[333706376,1722387032491,-503.66657438,0.00013698,2]
[333706378,1722387032500,-500.0,0.00013698,2]
[333706379,1722387032510,-500.0,0.00013698,2]
[333706382,1722387032521,-500.0,0.00013698,2]
[333706384,1722387032532,-438.25321469,0.00013698,2]
[333706386,1722387032543,-500.0,0.00013698,2]
[333706388,1722387032555,-500.0,0.00013698,2]
[333706390,1722387032564,-500.0,0.00013698,2]
[333706393,1722387032574,-500.0,0.00013698,2]
[333706395,1722387032583,-500.0,0.00013698,2]
[333706397,1722387032593,-500.0,0.00013698,2]
[333706399,1722387032602,-500.0,0.00013698,2]
[333706401,1722387032612,-574.26793223,0.00013698,2]
[333706403,1722387032621,-500.0,0.00013698,2]
[333706405,1722387032631,-500.0,0.00013698,2]
[333706407,1722387032641,-500.0,0.00013698,2]